[Event "Chinese League Division-A 2024"]
[Site "Fuling Chongqing"]
[Date "2024.07.06"]
[Round "9.26"]
[White "Jiang, Haochen"]
[Black "Dai, Changren"]
[Result "1/2-1/2"]
[ECO "B30"]
[WhiteElo "2290"]
[BlackElo "2502"]
[Annotator "RC"]
[PlyCount "170"]
[EventDate "2024.06.28"]
[EventType "team-tourn"]
[EventCountry "CHN"]
[SourceTitle "playchess.com"]
[Source "ChessBase"]
[SourceQuality "1"]
[TimeControl "40/5400+30:1800+30"]

1. e4 {[%emt 0:00:02]} c5 {[%emt 0:00:18]} 2. Nf3 {[%emt 0:00:02]} Nc6 {[%emt 0:00:21]} 3. Bb5 {[%emt 0:00:02]} Nf6 {[%emt 0:00:08]} 4. Bxc6 {[%emt 0:00:10]} dxc6 {[%emt 0:00:09]} 5. d3 {[%emt 0:00:07]} Qc7 {[%emt 0:01:20]} 6. h3 {[%emt 0:03:14]} e5 {[%emt 0:03:46]} 7. Nbd2 {[%emt 0:03:20]} Be7 {[%emt 0:00:13]} 8. a4 {[%emt 0:03:52]} O-O {[%emt 0:01:20]} 9. O-O {[%emt 0:00:47]} Be6 {[%emt 0:06:41]} 10. Ng5 {[%emt 0:03:26]} Bd7 {[%emt 0:00:18]} 11. Nc4 {[%emt 0:07:59]} b5 {[%emt 0:08:04]} 12. Ne3 {[%emt 0:04:57]} h6 {[%emt 0:03:20]} 13. Nf3 {[%emt 0:01:34]} a6 {[%emt 0:01:00]} 14. b3 {[%emt 0:04:43]} Nh5 {[%emt 0:15:09]} 15. Nf5 {[%emt 0:13:39]} Bxf5 {[%emt 0:07:44]} 16. exf5 {[%emt 0:00:31]} Nf4 {[%emt 0:04:32]} 17. Re1 {[%emt 0:06:27]} Bf6 {[%emt 0:02:17]} 18. Re4 {[%emt 0:07:18]} Qd7 {[%emt 0:09:13]} 19. Nxe5 {[%emt 0:08:55]} Nxh3+ {[%emt 0:01:02]} 20. gxh3 {[%emt 0:01:25]} Bxe5 {[%emt 0:00:02]} 21. Rxe5 {[%emt 0:00:27]} Qd4 {[%emt 0:00:02]} 22. Bf4 {[%emt 0:03:04]} Qxf4 {[%emt 0:00:06]} 23. Rxc5 {[%emt 0:00:33]} Qd4 {[%emt 0:01:36]} 24. b4 {[%emt 0:11:21]} Qxb4 {[%emt 0:00:20]} 25. Rxc6 {[%emt 0:00:09]} Rfc8 {[%emt 0:01:13]} 26. c3 {[%emt 0:04:36]} Qf4 {[%emt 0:02:58]} 27. axb5 {[%emt 0:04:05]} axb5 {[%emt 0:00:08]} 28. Rxc8+ {[%emt 0:01:08]} Rxc8 {[%emt 0:00:01]} 29. Qg4 {[%emt 0:00:21]} Qxg4+ {[%emt 0:00:34]} 30. hxg4 {[%emt 0:00:03]} Rxc3 {[%emt 0:00:08]} 31. Ra8+ {[%emt 0:04:22]} Kh7 {[%emt 0:00:09]} 32. Rb8 {[%emt 0:01:25]} Rxd3 {[%emt 0:00:06]} 33. Rxb5 {[%emt 0:00:02]} Rd4 {[%emt 0:00:12]} 34. f3 {[%emt 0:00:06]} Rd2 {[%emt 0:00:03]} 35. Kf1 {[%emt 0:01:20]} f6 {[%emt 0:00:12]} 36. Ke1 {[%emt 0:00:16]} Ra2 {[%emt 0:00:33]} 37. Rb7 {[%emt 0:00:33]} h5 {[%emt 0:03:09]} 38. gxh5 {[%emt 0:01:09]} Ra5 {[%emt 0:02:14]} 39. Kf2 {[%emt 0:00:09]} Rxf5 {[%emt 0:00:02]} 40. Kg3 {[%emt 0:00:00]} Rxh5 {[%emt 0:00:00]} 41. Ra7 {[%emt 0:00:22]} Rg5+ {[%emt 0:00:33]} 42. Kf2 {[%emt 0:01:09]} Kg6 {[%emt 0:01:12]} 43. Ra4 {[%emt 0:00:21]} Rb5 {[%emt 0:03:05]} 44. Kg3 {[%emt 0:00:07]} Rb2 {[%emt 0:00:20]} 45. Rc4 {[%emt 0:00:23]} Ra2 {[%emt 0:01:26]} 46. Rg4+ {[%emt 0:00:25]} Kf7 {[%emt 0:00:05]} 47. Rb4 {[%emt 0:00:04]} Ra3 {[%emt 0:00:55]} 48. Rb7+ {[%emt 0:03:11]} Kg6 {[%emt 0:00:14]} 49. Rb5 {[%emt 0:00:09]} Kh6 {[%emt 0:00:29]} 50. Rb6 {[%emt 0:00:30]} Kh5 {[%emt 0:00:30]} 51. Rc6 {[%emt 0:00:13]} Ra5 {[%emt 0:01:58]} 52. Rb6 {[%emt 0:03:14]} f5 {[%emt 0:04:07]} 53. Rb8 {[%emt 0:01:24]} Kg5 {[%emt 0:03:11]} 54. Rc8 {[%emt 0:02:29]} Ra1 {[%emt 0:01:51]} 55. f4+ {[%emt 0:02:41]} Kh5 {[%emt 0:02:18]} 56. Rh8+ {[%emt 0:00:06]} Kg6 {[%emt 0:00:06]} 57. Rb8 {[%emt 0:00:30]} Rg1+ {[%emt 0:01:20]} 58. Kf2 {[%emt 0:00:39]} Rh1 {[%emt 0:01:22]} 59. Kg2 {[%emt 0:00:28]} Re1 {[%emt 0:00:23]} 60. Rf8 {[%emt 0:01:30]} Re3 {[%emt 0:01:08]} 61. Kf2 {[%emt 0:00:19]} Ra3 {[%emt 0:00:07]} 62. Kg2 {[%emt 0:00:12]} Ra6 {[%emt 0:02:18]} 63. Kf3 {[%emt 0:02:17]} Rf6 {[%emt 0:00:13]} 64. Ra8 {[%emt 0:00:41]} Kh7 {[%emt 0:00:30]} 65. Ra5 {[%emt 0:01:03]} Kh6 {[%emt 0:00:29]} 66. Ra8 {[%emt 0:01:32]} g6 {[%emt 0:01:21]} 67. Rh8+ {[%emt 0:00:09]} Kg7 {[%emt 0:00:03]} 68. Ra8 {[%emt 0:00:05]} Rf8 {[%emt 0:00:04]} 69. Ra1 {[%emt 0:01:24]} Rb8 {[%emt 0:00:23]} 70. Rc1 {[%emt 0:00:42]} Rb6 {[%emt 0:00:24]} 71. Re1 {[%emt 0:01:31]} Rb3+ {[%emt 0:00:14]} 72. Kg2 {[%emt 0:00:09]} Kf7 {[%emt 0:00:04]} 73. Re2 {[%emt 0:00:40]} Rb6 {[%emt 0:01:02]} 74. Kf3 {[%emt 0:00:38]} Re6 {[%emt 0:00:06]} 75. Ra2 {[%emt 0:00:08]} Ke7 {[%emt 0:00:30]} 76. Ra7+ {[%emt 0:03:10]} Kd6 {[%emt 0:00:03]} 77. Ra6+ {[%emt 0:00:56]} Kd5 {[%emt 0:00:07]} 78. Ra5+ {[%emt 0:00:08]} Kd4 {[%emt 0:00:32]} 79. Ra4+ {[%emt 0:00:06]} Kc3 {[%emt 0:00:33]} 80. Ra3+ {[%emt 0:00:07]} Kb4 {[%emt 0:00:06]} 81. Ra8 {[%emt 0:00:29]} Rd6 {[%emt 0:00:22]} 82. Rc8 {[%emt 0:01:13]} Kb5 {[%emt 0:00:10]} 83. Kg3 {[%emt 0:00:33]} Rc6 {[%emt 0:00:43]} 84. Rb8+ {[%emt 0:01:34]} Kc5 {[%emt 0:00:09]} 85. Kh4 {[%emt 0:00:16]} Kd5 {[%emt 0:01:13]} 1/2-1/2

[Event "Chinese League Division-A 2024"]
[Site "Fuling Chongqing"]
[Date "2024.07.06"]
[Round "9.27"]
[White "Wang, Shixu B"]
[Black "Wang, Zihang"]
[Result "1-0"]
[ECO "E51"]
[WhiteElo "2422"]
[BlackElo "2028"]
[Annotator "RC"]
[PlyCount "79"]
[EventDate "2024.06.28"]
[EventType "team-tourn"]
[EventCountry "CHN"]
[SourceTitle "playchess.com"]
[Source "ChessBase"]
[SourceQuality "1"]
[TimeControl "40/5400+30:1800+30"]

1. d4 {[%emt 0:00:06]} Nf6 {[%emt 0:00:09]} 2. c4 {[%emt 0:00:04]} e6 {[%emt 0:00:09]} 3. Nc3 {[%emt 0:00:08]} Bb4 {[%emt 0:00:48]} 4. Nf3 {[%emt 0:00:13]} O-O {[%emt 0:00:36]} 5. e3 {[%emt 0:00:55]} d5 {[%emt 0:00:46]} 6. Bd2 {[%emt 0:00:12]} b6 {[%emt 0:02:41]} 7. cxd5 {[%emt 0:01:15]} exd5 {[%emt 0:00:09]} 8. Rc1 {[%emt 0:00:08]} Bb7 {[%emt 0:04:08]} 9. Bd3 {[%emt 0:00:16]} Be7 {[%emt 0:01:10]} 10. O-O {[%emt 0:03:28]} c5 {[%emt 0:01:00]} 11. Ne5 {[%emt 0:02:48]} Nc6 {[%emt 0:08:09]} 12. Be1 {[%emt 0:14:15]} Nxe5 {[%emt 0:17:20]} 13. dxe5 {[%emt 0:00:15]} Nd7 {[%emt 0:03:31]} 14. f4 {[%emt 0:04:22]} d4 {[%emt 0:04:18]} 15. Be4 {[%emt 0:13:41]} Bxe4 {[%emt 0:07:14]} 16. Nxe4 {[%emt 0:00:06]} dxe3 {[%emt 0:04:19]} 17. Qe2 {[%emt 0:00:48]} Qc7 {[%emt 0:08:34]} 18. Qxe3 {[%emt 0:05:46]} c4 {[%emt 0:01:04]} 19. Kh1 {[%emt 0:03:07]} b5 {[%emt 0:02:11]} 20. Bc3 {[%emt 0:04:16]} Rfe8 {[%emt 0:19:24]} 21. Qg3 {[%emt 0:03:44]} Bf8 {[%emt 0:02:44]} 22. Rcd1 {[%emt 0:16:38]} Red8 {[%emt 0:01:19]} 23. Nd6 {[%emt 0:00:21]} Rab8 {[%emt 0:02:10]} 24. Nxf7 {[%emt 0:02:57]} Kxf7 {[%emt 0:01:19]} 25. e6+ {[%emt 0:00:14]} Kg8 {[%emt 0:02:37]} 26. e7 {[%emt 0:00:14]} Nc5 {[%emt 0:03:06]} 27. exd8=Q {[%emt 0:01:10]} Rxd8 {[%emt 0:00:08]} 28. Rxd8 {[%emt 0:03:40]} Qxd8 {[%emt 0:00:07]} 29. Qe3 {[%emt 0:02:43]} Nd3 {[%emt 0:01:48]} 30. Qxa7 {[%emt 0:02:52]} Qe8 {[%emt 0:00:31]} 31. Be5 {[%emt 0:00:16]} Qh5 {[%emt 0:01:05]} 32. Qd7 {[%emt 0:03:10]} Qg6 {[%emt 0:01:16]} 33. h3 {[%emt 0:01:22]} h5 {[%emt 0:00:36]} 34. Qd5+ {[%emt 0:01:46]} Kh8 {[%emt 0:00:29]} 35. Qxb5 {[%emt 0:02:08]} Bc5 {[%emt 0:00:32]} 36. Qxc4 {[%emt 0:03:30]} Qg3 {[%emt 0:00:30]} 37. Bd4 {[%emt 0:01:09]} Ne1 {[%emt 0:00:31]} 38. Qe2 {[%emt 0:00:26]} Bxd4 {[%emt 0:00:30]} 39. Qxh5+ {[%emt 0:00:25]} Kg8 {[%emt 0:00:08]} 40. Qe8+ {[%emt 0:00:00]} 1-0

[Event "Chinese League Division-A 2024"]
[Site "Fuling Chongqing"]
[Date "2024.07.06"]
[Round "9.28"]
[White "Xu, Pengmo"]
[Black "Chu, Wei Chao"]
[Result "0-1"]
[ECO "E73"]
[WhiteElo "1834"]
[BlackElo "2412"]
[Annotator "RC"]
[PlyCount "66"]
[EventDate "2024.06.28"]
[EventType "team-tourn"]
[EventCountry "CHN"]
[SourceTitle "playchess.com"]
[Source "ChessBase"]
[SourceQuality "1"]
[TimeControl "40/5400+30:1800+30"]

1. d4 {[%emt 0:00:04]} Nf6 {[%emt 0:00:16]} 2. c4 {[%emt 0:00:29]} g6 {[%emt 0:00:14]} 3. Nc3 {[%emt 0:00:44]} Bg7 {[%emt 0:02:17]} 4. h4 {[%emt 0:01:24]} c5 {[%emt 0:03:44]} 5. d5 {[%emt 0:02:37]} O-O {[%emt 0:05:10]} 6. e4 {[%emt 0:03:18]} d6 {[%emt 0:01:27]} 7. Be2 {[%emt 0:02:13]} e6 {[%emt 0:00:05]} 8. h5 {[%emt 0:07:45]} exd5 {[%emt 0:00:19]} 9. cxd5 {[%emt 0:04:33]} Re8 {[%emt 0:06:54]} 10. hxg6 {[%emt 0:05:13]} hxg6 {[%emt 0:00:56]} 11. Qc2 {[%emt 0:01:33]} Na6 {[%emt 0:18:45]} 12. Bg5 {[%emt 0:12:47]} Bd7 {[%emt 0:07:36]} 13. f3 {[%emt 0:04:35]} Qe7 {[%emt 0:09:02]} 14. Qd2 {[%emt 0:05:45]} Qf8 {[%emt 0:01:24]} 15. Bxa6 {[%emt 0:15:02]} bxa6 {[%emt 0:00:10]} 16. Nge2 {[%emt 0:00:09]} Rab8 {[%emt 0:06:33]} 17. O-O-O {[%emt 0:01:51]} Rb6 {[%emt 0:00:05]} 18. Rh2 {[%emt 0:05:44]} Reb8 {[%emt 0:02:44]} 19. Rdh1 {[%emt 0:08:29]} Rxb2 {[%emt 0:00:47]} 20. Qxb2 {[%emt 0:01:54]} Rxb2 {[%emt 0:00:07]} 21. Kxb2 {[%emt 0:00:02]} Qd8 {[%emt 0:03:48]} 22. Kc2 {[%emt 0:01:40]} Qa5 {[%emt 0:02:03]} 23. Rb1 {[%emt 0:03:18]} Bb5 {[%emt 0:01:11]} 24. Rhh1 {[%emt 0:06:24]} Nd7 {[%emt 0:00:46]} 25. Bf4 {[%emt 0:01:08]} Ne5 {[%emt 0:16:41]} 26. Bxe5 {[%emt 0:00:53]} Bxe5 {[%emt 0:01:15]} 27. Rhc1 {[%emt 0:02:42]} f5 {[%emt 0:02:42]} 28. g4 {[%emt 0:01:33]} fxg4 {[%emt 0:03:19]} 29. fxg4 {[%emt 0:00:05]} Bxe2 {[%emt 0:00:07]} 30. Nxe2 {[%emt 0:00:08]} Qxa2+ {[%emt 0:00:06]} 31. Kd3 {[%emt 0:00:44]} Bb2 {[%emt 0:01:22]} 32. Nc3 {[%emt 0:01:10]} c4+ {[%emt 0:00:32]} 33. Kd4 {[%emt 0:00:31]} Qa3 {[%emt 0:00:08]} 0-1

[Event "Chinese League Division-A 2024"]
[Site "Fuling Chongqing"]
[Date "2024.07.06"]
[Round "9.29"]
[White "Xiao, Yiyi"]
[Black "Du, Yuxin"]
[Result "1-0"]
[ECO "B13"]
[WhiteElo "2338"]
[BlackElo "1960"]
[Annotator "RC"]
[PlyCount "99"]
[EventDate "2024.06.28"]
[EventType "team-tourn"]
[EventCountry "CHN"]
[SourceTitle "playchess.com"]
[Source "ChessBase"]
[SourceQuality "1"]
[TimeControl "40/5400+30:1800+30"]

1. e4 {[%emt 0:00:07]} c6 {[%emt 0:00:46]} 2. d4 {[%emt 0:00:14]} d5 {[%emt 0:00:06]} 3. exd5 {[%emt 0:00:18]} cxd5 {[%emt 0:00:07]} 4. Bd3 {[%emt 0:00:08]} Nc6 {[%emt 0:00:38]} 5. c3 {[%emt 0:00:06]} Qc7 {[%emt 0:00:56]} 6. h3 {[%emt 0:01:21]} g6 {[%emt 0:06:06]} 7. Qc2 {[%emt 0:08:21]} e5 {[%emt 0:05:12]} 8. dxe5 {[%emt 0:00:09]} Nxe5 {[%emt 0:00:15]} 9. Bb5+ {[%emt 0:09:41]} Bd7 {[%emt 0:06:59]} 10. Bxd7+ {[%emt 0:00:09]} Qxd7 {[%emt 0:01:02]} 11. Qe2 {[%emt 0:02:59]} Qe6 {[%emt 0:09:40]} 12. Be3 {[%emt 0:01:17]} Bh6 {[%emt 0:17:01]} 13. Bd4 {[%emt 0:12:20]} f6 {[%emt 0:03:39]} 14. Bxe5 {[%emt 0:04:16]} fxe5 {[%emt 0:00:14]} 15. Nf3 {[%emt 0:00:16]} Bg7 {[%emt 0:05:58]} 16. Na3 {[%emt 0:11:34]} Rc8 {[%emt 0:00:30]} 17. O-O {[%emt 0:00:30]} Ne7 {[%emt 0:00:30]} 18. Rfe1 {[%emt 0:00:30]} e4 {[%emt 0:00:30]} 19. Nb5 {[%emt 0:00:30]} a6 {[%emt 0:30:15]} 20. Nbd4 {[%emt 0:21:11]} Qf6 {[%emt 0:00:19]} 21. Nh2 {[%emt 0:00:22]} O-O {[%emt 0:00:48]} 22. Rad1 {[%emt 0:00:17]} Nc6 {[%emt 0:07:06]} 23. Nxc6 {[%emt 0:05:10]} bxc6 {[%emt 0:00:20]} 24. f3 {[%emt 0:00:22]} exf3 {[%emt 0:02:25]} 25. Nxf3 {[%emt 0:00:05]} a5 {[%emt 0:00:30]} 26. Nd4 {[%emt 0:00:30]} Qd6 {[%emt 0:00:40]} 27. Qe3 {[%emt 0:11:37]} Rf7 {[%emt 0:00:48]} 28. Qe6 {[%emt 0:04:45]} Qxe6 {[%emt 0:00:34]} 29. Rxe6 {[%emt 0:00:13]} Bxd4+ {[%emt 0:00:15]} 30. Rxd4 {[%emt 0:00:07]} Rb7 {[%emt 0:00:36]} 31. b3 {[%emt 0:00:05]} Kf7 {[%emt 0:00:31]} 32. Re2 {[%emt 0:00:20]} Rcc7 {[%emt 0:00:40]} 33. Ra4 {[%emt 0:01:17]} Rb5 {[%emt 0:00:21]} 34. Kf2 {[%emt 0:03:24]} Rc5 {[%emt 0:00:28]} 35. Rh4 {[%emt 0:01:39]} Kg7 {[%emt 0:00:30]} 36. Re3 {[%emt 0:00:04]} Ra7 {[%emt 0:00:42]} 37. Ke2 {[%emt 0:01:15]} Rb5 {[%emt 0:00:28]} 38. Ra4 {[%emt 0:00:42]} Rc7 {[%emt 0:00:29]} 39. Rf4 {[%emt 0:00:27]} Rf7 {[%emt 0:00:30]} 40. Rxf7+ {[%emt 0:00:00]} Kxf7 {[%emt 0:00:00]} 41. Kd3 {[%emt 0:02:39]} h5 {[%emt 0:27:36]} 42. Kd4 {[%emt 0:04:40]} h4 {[%emt 0:02:34]} 43. Re2 {[%emt 0:04:24]} a4 {[%emt 0:01:25]} 44. b4 {[%emt 0:00:29]} a3 {[%emt 0:00:15]} 45. Re1 {[%emt 0:02:21]} g5 {[%emt 0:00:57]} 46. Re5 {[%emt 0:05:39]} Kf6 {[%emt 0:00:36]} 47. Re8 {[%emt 0:00:08]} Rb7 {[%emt 0:00:38]} 48. Kc5 {[%emt 0:01:40]} Rc7 {[%emt 0:00:32]} 49. Kd6 {[%emt 0:00:15]} Rg7 {[%emt 0:00:28]} 50. Rf8+ {[%emt 0:00:35]} 1-0